fUSD/lending_fUSD_20240620
["ID","MTS","AMOUNT","RATE_DAILY","PERIOD"]
[329938756,1718848254460,-3904.46,0.00013698,2]
[329938757,1718848254470,-500.49944029,0.00013698,2]
[329938758,1718848254484,-501.9177875,0.00013698,2]
[329938759,1718848254494,-1428.07,0.00013698,2]
[329938760,1718848254504,-504.39974435,0.00013698,2]
[329938761,1718848254513,-7568.5,0.00013698,2]
[329938762,1718848254523,-503.75727002,0.00013698,2]
[329938763,1718848254533,-506.32703718,0.00013698,2]
[329938764,1718848254542,-5256.79,0.00013698,2]
[329938765,1718848254552,-504.35482732,0.00013698,2]
[329938766,1718848254562,-506.88285081,0.00013698,2]
[329938767,1718848254572,-500.0,0.00013698,2]
[329938768,1718848254581,-502.87884133,0.00013698,2]
[329938769,1718848254590,-6762.76,0.00013698,2]
[329938770,1718848254599,-511.15746806,0.00013698,2]
[329938771,1718848254608,-500.0,0.00013698,2]
[329938772,1718848254617,-523.26,0.00013698,2]
[329938773,1718848254626,-504.15668073,0.00013698,2]
[329938774,1718848254636,-701.6,0.00013698,2]
[329938775,1718848254645,-583.17481612,0.00013698,2]
[329938776,1718848254654,-501.00286748,0.00013698,2]
[329938777,1718848254663,-2628.97,0.00013698,2]
[329938778,1718848254672,-500.0,0.00013698,2]
[329938779,1718848254693,-924.08,0.00013698,2]
[329938780,1718848254702,-500.0,0.00013698,2]
[329938781,1718848254712,-504.22225252,0.00013698,2]
[329938782,1718848254721,-617.98,0.00013698,2]
[329938783,1718848254731,-620.36,0.00013698,2]
[329938784,1718848254740,-501.70970623,0.00013698,2]
[329938785,1718848254750,-503.91374875,0.00013698,2]
[329938786,1718848254759,-504.07904681,0.00013698,2]
[329938787,1718848254769,-962.06,0.00013698,2]
[329938788,1718848254779,-507.10052049,0.00013698,2]
[329938789,1718848254790,-504.32302245,0.00013698,2]
[329938790,1718848254800,-7105.77,0.00013698,2]
[329938791,1718848254809,-500.0,0.00013698,2]
[329938792,1718848254818,-4144.56,0.00013698,2]
[329938793,1718848254827,-506.86485488,0.00013698,2]
[329938794,1718848254836,-751.8,0.00013698,2]
[329938795,1718848254846,-500.0,0.00013698,2]
[329938796,1718848254856,-5024.68,0.00013698,2]
[329938797,1718848254866,-500.0,0.00013698,2]
[329938798,1718848254875,-1185.24067858,0.00013698,2]
[329938799,1718848254886,-286.41038592,0.00013698,2]
[329938800,1718848254895,-503.68788189,0.00013698,2]
[329938801,1718848254907,-500.0,0.00013698,2]
[329938802,1718848254917,-2081.23,0.00013698,2]
[329938803,1718848254926,-3290.59,0.00013698,2]
[329938804,1718848254936,-504.59,0.00013698,2]
[329938805,1718848254946,-2516.58,0.00013698,2]
[329938806,1718848254956,-510.40085294,0.00013698,2]
[329938807,1718848254966,-501.56994053,0.00013698,2]
[329938808,1718848254976,-507.41607549,0.00013698,2]
[329938809,1718848254985,-504.32163011,0.00013698,2]
[329938810,1718848254995,-509.27173492,0.00013698,2]
[329938811,1718848255004,-886.87,0.00013698,2]
[329938812,1718848255014,-500.0,0.00013698,2]
[329938813,1718848255023,-200.0,0.00013699,2]
[329938814,1718848255033,-250.0,0.00013699,2]
[329938815,1718848255046,-1487.05,0.00013699,2]
[329938816,1718848255056,-639.29,0.00013699,2]
[329938817,1718848255066,-500.0,0.000137,2]
[329938818,1718848255076,-250779.52169628,0.000137,2]
[329938819,1718848255085,-339.2,0.000137,2]
[329938820,1718848255095,-164.98967969,0.00013707,2]
[329938821,1718848255104,-154.80973173,0.00013714,2]
[329938822,1718848255114,-747.3466954,0.00013727,2]
[329938823,1718848255124,-150.0,0.00013727,2]
[329938824,1718848255133,-150.0,0.0001373,2]
[329938825,1718848255143,-150.0,0.0001373,2]
[329938826,1718848255153,-154.80973169,0.00013737,2]
[329938827,1718848255162,-150.0,0.0001374,2]
[329938828,1718848255173,-150.0,0.00013742,2]
[329938829,1718848255183,-150.0,0.00013743,2]
[329938830,1718848255192,-150.0,0.00013746,2]
[329938831,1718848255202,-150.0,0.00013746,2]
[329938832,1718848255213,-150.0,0.00013749,2]
[329938833,1718848255225,-360.974,0.0001375,2]
[329938834,1718848255235,-1830.0,0.0001375,2]
[329938835,1718848255244,-1276.882,0.0001375,2]
[329938836,1718848255254,-659.361,0.0001375,2]
[329938837,1718848255263,-447.0,0.0001375,2]
[329938838,1718848255272,-1309.714,0.0001375,2]
[329938839,1718848255282,-2549.38,0.0001375,2]
[329938840,1718848255292,-548.955,0.0001375,2]
[329938841,1718848255301,-3206.969,0.0001375,2]
[329938842,1718848255311,-5165.0,0.0001375,2]
[329938843,1718848255326,-151.0,0.0001375,2]
[329938844,1718848255336,-5838.097,0.0001375,2]
[329938845,1718848255345,-1660.0,0.0001375,2]
[329938846,1718848255355,-1200.54,0.0001375,2]
[329938847,1718848255364,-150.188,0.0001375,2]
[329938848,1718848255373,-38140.0,0.0001375,2]
[329938849,1718848255383,-1070.024,0.0001375,2]
[329938850,1718848255392,-150.0,0.00013753,2]
[329938851,1718848255401,-150.0,0.0001376,2]
[329938852,1718848255413,-154.80973169,0.00013761,2]
[329938853,1718848255422,-150.0,0.00013762,2]
[329938854,1718848255432,-150.0,0.00013763,2]
[329938855,1718848255441,-150.0,0.00013765,2]
[329938856,1718848255451,-150.0,0.00013765,2]
[329938857,1718848255460,-150.0,0.00013767,2]
[329938858,1718848255475,-150.0,0.00013767,2]
[329938859,1718848255485,-150.0,0.00013768,2]
[329938860,1718848255494,-150.0,0.00013768,2]
[329938861,1718848255504,-747.3466954,0.0001377,2]
[329938862,1718848255515,-150.0,0.00013771,2]
[329938863,1718848255525,-150.0,0.00013773,2]
[329938864,1718848255535,-150.0,0.00013775,2]
[329938865,1718848255545,-150.0,0.0001378,2]
[329938866,1718848255557,-150.0,0.0001378,2]
[329938867,1718848255566,-150.0,0.00013782,2]
[329938868,1718848255576,-154.80973169,0.00013784,2]
[329938869,1718848255585,-150.0,0.00013788,2]
[329938870,1718848255595,-150.0,0.0001379,2]
[329938871,1718848255604,-150.0,0.0001379,2]
[329938872,1718848255613,-150.0,0.00013798,2]
[329938873,1718848255623,-500.0,0.00013799,2]
[329938874,1718848255632,-500.0,0.00013799,2]
[329938875,1718848255642,-257.50364485,0.00013799,2]
[329938876,1718848255652,-257.50364478,0.00013799,2]
[329938877,1718848255662,-257.50364478,0.00013799,2]
[329938878,1718848255671,-257.50364478,0.00013799,2]
[329938879,1718848255682,-257.50364478,0.00013799,2]
[329938880,1718848255691,-257.50364478,0.00013799,2]
[329938881,1718848255701,-257.50364478,0.00013799,2]
[329938882,1718848255712,-150.0,0.00013801,2]
[329938883,1718848255721,-150.0,0.00013806,2]
[329938884,1718848255731,-154.80973169,0.00013807,2]
[329938885,1718848255741,-150.0,0.00013809,2]
[329938886,1718848255750,-150.0,0.00013813,2]
[329938887,1718848255759,-747.3466954,0.00013813,2]
[329938888,1718848255769,-150.0,0.00013815,2]
[329938889,1718848255778,-150.0,0.0001382,2]
[329938890,1718848255787,-150.0,0.00013826,2]
[329938891,1718848255797,-150.0,0.00013828,2]
[329938892,1718848255807,-150.0,0.0001383,2]
[329938893,1718848255816,-154.80973169,0.0001383,2]
[329938894,1718848255826,-150.0,0.00013831,2]
[329938895,1718848255836,-150.0,0.00013832,2]
[329938896,1718848255845,-257.50364478,0.00013832,2]
[329938897,1718848255855,-150.0,0.00013835,2]
[329938898,1718848255864,-150.0,0.00013838,2]
[329938899,1718848255873,-150.0,0.00013839,2]
[329938900,1718848255883,-150.0,0.0001384,2]
[329938901,1718848255896,-150.0,0.0001384,2]
[329938902,1718848255906,-150.0,0.00013843,2]
[329938903,1718848255917,-150.0,0.0001385,2]
[329938904,1718848255927,-150.0,0.0001385,2]
[329938905,1718848255937,-150.0,0.00013853,2]
[329938906,1718848255949,-154.80973169,0.00013854,2]
[329938907,1718848255961,-747.3466954,0.00013857,2]
[329938908,1718848255971,-150.0,0.00013858,2]
[329938909,1718848255980,-150.0,0.00013858,2]
[329938910,1718848255990,-150.0,0.00013858,2]
[329938911,1718848256001,-150.0,0.0001386,2]
[329938912,1718848256012,-150.0,0.00013862,2]
[329938913,1718848256021,-301.36782912,0.00013865,2]
[329938914,1718848256031,-150.0,0.00013868,2]
[329938915,1718848256043,-1514.36843827,0.00013872,2]
[329938916,1718848256053,-3166.57020097,0.00013872,2]
[329938917,1718848256062,-287.9076,0.00013872,2]
[329938918,1718848256073,-150.0,0.00013873,2]
[329938919,1718848256084,-150.0,0.00013875,2]
[329938920,1718848256094,-150.0,0.00013875,2]
[329938921,1718848256104,-150.0,0.00013875,2]
[329938922,1718848256114,-154.80973169,0.00013877,2]
[329938923,1718848256124,-200.0,0.00013879,2]
[329938924,1718848256134,-150.0,0.00013884,2]
[329938925,1718848256144,-150.0,0.00013885,2]
[329938926,1718848256154,-150.0,0.00013886,2]
[329938927,1718848256164,-150.0,0.00013886,2]
[329938928,1718848256174,-1514.36843827,0.00013886,2]
[329938929,1718848256185,-500.0,0.00013887,2]
[329938930,1718848256196,-200.0,0.00013887,2]
[329938931,1718848256207,-200.0,0.00013888,2]
[329938932,1718848256216,-1000.0,0.00013888,2]
[329938933,1718848256226,-500.0,0.00013888,2]
[329938934,1718848256235,-500.0,0.00013888,2]
[329938935,1718848256244,-200.0,0.00013888,2]
[329938936,1718848256253,-200.0,0.00013888,2]
[329938937,1718848256263,-150.0,0.00013889,2]
[329938938,1718848256272,-221.26,0.0001389,3]
[329938939,1718848256282,-150.0,0.00013891,2]
[329938940,1718848256292,-150.0,0.00013893,2]
[329938941,1718848256304,-150.0,0.00013894,2]
[329938942,1718848256314,-150.0,0.00013894,2]
[329938943,1718848256324,-150.0,0.00013895,2]
[329938944,1718848256333,-150.0,0.00013899,2]
[329938945,1718848256343,-151.7266251,0.00013899,2]
[329938946,1718848256353,-407.58574315,0.000139,2]
[329938947,1718848256362,-154.80973169,0.000139,2]
[329938948,1718848256372,-164.98967968,0.000139,2]
[329938949,1718848256381,-500.0,0.000139,2]
[329938950,1718848256394,-500.0,0.000139,2]
[329938951,1718848256403,-500.0,0.000139,2]
[329938952,1718848256413,-500.0,0.000139,2]
[329938953,1718848256424,-500.0,0.000139,2]
[329938954,1718848256434,-500.0,0.000139,2]
[329938955,1718848256444,-500.0,0.000139,2]
[329938956,1718848256453,-500.0,0.000139,2]
[329938957,1718848256463,-500.0,0.000139,2]
[329938958,1718848256474,-500.0,0.000139,2]
[329938959,1718848256483,-500.0,0.000139,2]
[329938960,1718848256492,-500.0,0.000139,2]
[329938961,1718848256502,-500.0,0.000139,2]
[329938962,1718848256512,-500.0,0.000139,2]
[329938963,1718848256522,-500.0,0.000139,2]
[329938964,1718848256531,-500.0,0.000139,2]
[329938965,1718848256540,-500.0,0.000139,2]
[329938966,1718848256555,-500.0,0.000139,2]
[329938967,1718848256565,-500.0,0.000139,2]
[329938968,1718848256574,-500.0,0.000139,2]
[329938969,1718848256584,-500.0,0.000139,2]
[329938970,1718848256593,-500.0,0.000139,2]
[329938971,1718848256602,-500.0,0.000139,2]
[329938972,1718848256611,-500.0,0.000139,2]
[329938973,1718848256621,-500.0,0.000139,2]
[329938974,1718848256631,-500.0,0.000139,2]
[329938975,1718848256640,-500.0,0.000139,2]
[329938976,1718848256649,-500.0,0.000139,2]
[329938977,1718848256659,-500.0,0.000139,2]
[329938978,1718848256668,-500.0,0.000139,2]
[329938979,1718848256678,-500.0,0.000139,2]
[329938980,1718848256687,-500.0,0.000139,2]
[329938981,1718848256697,-500.0,0.000139,2]
[329938982,1718848256706,-500.0,0.000139,2]
[329938983,1718848256716,-500.0,0.000139,2]
[329938984,1718848256725,-500.0,0.000139,2]
[329938985,1718848256735,-500.0,0.000139,2]
[329938986,1718848256744,-500.0,0.000139,2]
[329938987,1718848256754,-500.0,0.000139,2]
[329938988,1718848256764,-500.0,0.000139,2]
[329938989,1718848256774,-500.0,0.000139,2]
[329938990,1718848256784,-500.0,0.000139,2]
[329938991,1718848256795,-500.0,0.000139,2]
[329938992,1718848256805,-500.0,0.000139,2]
[329938993,1718848256814,-500.0,0.000139,2]
[329938994,1718848256824,-500.0,0.000139,2]
[329938995,1718848256834,-500.0,0.000139,2]
[329938996,1718848256843,-500.0,0.000139,2]
[329938997,1718848256853,-500.0,0.000139,2]
[329938998,1718848256863,-500.0,0.000139,2]
[329938999,1718848256873,-500.0,0.000139,2]
[329939000,1718848256883,-500.0,0.000139,2]
[329939001,1718848256894,-500.0,0.000139,2]
[329939002,1718848256904,-500.0,0.000139,2]
[329939003,1718848256914,-500.0,0.000139,2]
[329939004,1718848256924,-500.0,0.000139,2]
[329939005,1718848256934,-500.0,0.000139,2]
[329939006,1718848256944,-500.0,0.000139,2]
[329939007,1718848256953,-500.0,0.000139,2]
[329939008,1718848256963,-500.0,0.000139,2]
[329939009,1718848256973,-500.0,0.000139,2]
[329939010,1718848256982,-500.0,0.000139,2]
[329939011,1718848256992,-500.0,0.000139,2]
[329939012,1718848257001,-500.0,0.000139,2]
[329939013,1718848257011,-500.0,0.000139,2]
[329939014,1718848257020,-500.0,0.000139,2]
[329939015,1718848257030,-500.0,0.000139,2]
[329939016,1718848257040,-500.0,0.000139,2]
[329939017,1718848257051,-500.0,0.000139,2]
[329939018,1718848257061,-500.0,0.000139,2]
[329939019,1718848257070,-500.0,0.000139,2]
[329939020,1718848257079,-500.0,0.000139,2]
[329939021,1718848257088,-500.0,0.000139,2]
[329939022,1718848257098,-500.0,0.000139,2]
[329939023,1718848257108,-500.0,0.000139,2]
[329939024,1718848257117,-500.0,0.000139,2]
[329939025,1718848257127,-500.0,0.000139,2]
[329939026,1718848257136,-500.0,0.000139,2]
[329939027,1718848257145,-500.0,0.000139,2]
[329939028,1718848257155,-500.0,0.000139,2]
[329939029,1718848257164,-500.0,0.000139,2]
[329939030,1718848257174,-500.0,0.000139,2]
[329939031,1718848257184,-500.0,0.000139,2]
[329939032,1718848257194,-500.0,0.000139,2]
[329939033,1718848257204,-500.0,0.000139,2]
[329939034,1718848257213,-500.0,0.000139,2]
[329939035,1718848257223,-500.0,0.000139,2]
[329939036,1718848257233,-500.0,0.000139,2]
[329939037,1718848257243,-500.0,0.000139,2]
[329939038,1718848257252,-500.0,0.000139,2]
[329939039,1718848257262,-500.0,0.000139,2]
[329939040,1718848257272,-500.0,0.000139,2]
[329939041,1718848257282,-500.0,0.000139,2]
[329939042,1718848257292,-500.0,0.000139,2]
[329939043,1718848257303,-500.0,0.000139,2]
[329939044,1718848257312,-500.0,0.000139,2]
[329939045,1718848257323,-500.0,0.000139,2]
[329939046,1718848257333,-500.0,0.000139,2]
[329939047,1718848257344,-500.0,0.000139,2]
[329939048,1718848257356,-500.0,0.000139,2]
[329939049,1718848257366,-500.0,0.000139,2]
[329939050,1718848257376,-500.0,0.000139,2]
[329939051,1718848257387,-500.0,0.000139,2]
[329939052,1718848257398,-500.0,0.000139,2]
[329939053,1718848257411,-500.0,0.000139,2]
[329939054,1718848257422,-500.0,0.000139,2]
[329939055,1718848257433,-500.0,0.000139,2]
[329939056,1718848257445,-500.0,0.000139,2]
[329939057,1718848257455,-500.0,0.000139,2]
[329939058,1718848257470,-500.0,0.000139,2]
[329939059,1718848257480,-500.0,0.000139,2]
[329939060,1718848257491,-500.0,0.000139,2]
[329939061,1718848257501,-500.0,0.000139,2]
[329939062,1718848257513,-500.0,0.000139,2]
[329939063,1718848257523,-500.0,0.000139,2]
[329939064,1718848257534,-500.0,0.000139,2]
[329939065,1718848257545,-500.0,0.000139,2]
[329939066,1718848257557,-500.0,0.000139,2]
[329939067,1718848257567,-500.0,0.000139,2]
[329939068,1718848257578,-500.0,0.000139,2]
[329939069,1718848257589,-500.0,0.000139,2]
[329939070,1718848257599,-500.0,0.000139,2]
[329939071,1718848257610,-500.0,0.000139,2]
[329939072,1718848257620,-500.0,0.000139,2]
[329939073,1718848257631,-500.0,0.000139,2]
[329939074,1718848257642,-500.0,0.000139,2]
[329939075,1718848257652,-500.0,0.000139,2]
[329939076,1718848257663,-500.0,0.000139,2]
[329939077,1718848257674,-500.0,0.000139,2]
[329939078,1718848257684,-500.0,0.000139,2]
[329939079,1718848257695,-500.0,0.000139,2]
[329939080,1718848257705,-500.0,0.000139,2]
[329939081,1718848257717,-500.0,0.000139,2]
[329939082,1718848257727,-500.0,0.000139,2]
[329939083,1718848257738,-500.0,0.000139,2]
[329939084,1718848257748,-500.0,0.000139,2]
[329939085,1718848257760,-500.0,0.000139,2]
[329939086,1718848257770,-500.0,0.000139,2]
[329939087,1718848257781,-500.0,0.000139,2]
[329939088,1718848257791,-500.0,0.000139,2]
[329939089,1718848257803,-500.0,0.000139,2]
[329939090,1718848257813,-500.0,0.000139,2]
[329939091,1718848257823,-500.0,0.000139,2]
[329939092,1718848257834,-500.0,0.000139,2]
[329939093,1718848257845,-500.0,0.000139,2]
[329939094,1718848257855,-500.0,0.000139,2]
[329939095,1718848257866,-500.0,0.000139,2]
[329939096,1718848257876,-500.0,0.000139,2]
[329939097,1718848257887,-500.0,0.000139,2]
[329939098,1718848257898,-500.0,0.000139,2]
[329939099,1718848257909,-500.0,0.000139,2]
[329939100,1718848257919,-500.0,0.000139,2]
[329939101,1718848257930,-500.0,0.000139,2]
[329939102,1718848257941,-500.0,0.000139,2]
[329939103,1718848257951,-500.0,0.000139,2]
[329939104,1718848257962,-500.0,0.000139,2]
[329939105,1718848257972,-500.0,0.000139,2]
[329939106,1718848257982,-500.0,0.000139,2]
[329939107,1718848257994,-500.0,0.000139,2]
[329939108,1718848258004,-500.0,0.000139,2]
[329939109,1718848258015,-500.0,0.000139,2]
[329939110,1718848258025,-500.0,0.000139,2]
[329939111,1718848258036,-500.0,0.000139,2]
[329939112,1718848258046,-500.0,0.000139,2]
[329939113,1718848258057,-500.0,0.000139,2]
[329939114,1718848258068,-500.0,0.000139,2]
[329939115,1718848258078,-500.0,0.000139,2]
[329939116,1718848258089,-500.0,0.000139,2]
[329939117,1718848258100,-500.0,0.000139,2]
[329939118,1718848258111,-500.0,0.000139,2]
[329939119,1718848258121,-500.0,0.000139,2]
[329939120,1718848258132,-500.0,0.000139,2]
[329939121,1718848258142,-500.0,0.000139,2]
[329939122,1718848258152,-500.0,0.000139,2]
[329939123,1718848258162,-500.0,0.000139,2]
[329939124,1718848258172,-500.0,0.000139,2]
[329939125,1718848258182,-500.0,0.000139,2]
[329939126,1718848258192,-500.0,0.000139,2]
[329939127,1718848258202,-500.0,0.000139,2]
[329939128,1718848258212,-500.0,0.000139,2]
[329939129,1718848258222,-500.0,0.000139,2]
[329939130,1718848258232,-500.0,0.000139,2]
[329939131,1718848258242,-500.0,0.000139,2]
[329939132,1718848258253,-500.0,0.000139,2]
[329939133,1718848258263,-500.0,0.000139,2]
[329939134,1718848258277,-500.0,0.000139,2]
[329939135,1718848258287,-500.0,0.000139,2]
[329939136,1718848258300,-500.0,0.000139,2]
[329939137,1718848258310,-500.0,0.000139,2]
[329939138,1718848258319,-500.0,0.000139,2]
[329939139,1718848258329,-500.0,0.000139,2]
[329939140,1718848258338,-500.0,0.000139,2]
[329939141,1718848258348,-500.0,0.000139,2]
[329939142,1718848258358,-500.0,0.000139,2]
[329939143,1718848258368,-500.0,0.000139,2]
[329939144,1718848258378,-500.0,0.000139,2]
[329939145,1718848258388,-500.0,0.000139,2]
[329939146,1718848258398,-500.0,0.000139,2]
[329939147,1718848258409,-500.0,0.000139,2]
[329939148,1718848258419,-500.0,0.000139,2]
[329939149,1718848258430,-747.3466954,0.000139,2]
[329939150,1718848258440,-1514.36843827,0.000139,2]
[329939151,1718848258450,-1007.0,0.000139,2]
[329939152,1718848258461,-150.0,0.00013901,2]
[329939153,1718848258474,-150.0,0.00013902,2]
[329939154,1718848258484,-150.0,0.00013902,2]
[329939155,1718848258494,-150.0,0.00013905,2]
[329939156,1718848258504,-150.0,0.00013906,2]
[329939157,1718848258517,-150.0,0.00013907,2]
[329939158,1718848258527,-150.0,0.0001391,2]
[329939159,1718848258537,-150.0,0.00013918,2]
[329939160,1718848258550,-150.0,0.00013928,2]
[329939161,1718848258561,-150.0,0.00013934,2]
[329939162,1718848258571,-150.0,0.00013937,2]
[329939163,1718848258582,-150.0,0.00013938,2]
[329939164,1718848258592,-150.0,0.00013944,2]
[329939165,1718848258603,-150.0,0.00013948,2]
[329939166,1718848258612,-1509.62822896,0.00013956,2]
[329939167,1718848258623,-1558.26045957,0.00013957,2]
[329939168,1718848258633,-150.0,0.0001396,2]
[329939169,1718848258644,-150.0,0.00013961,2]
[329939170,1718848258655,-150.0,0.00013962,2]
[329939171,1718848258664,-157.12524034,0.00013962,2]
[329939172,1718848258675,-150.0,0.00013963,2]
[329939173,1718848258685,-150.0,0.00013965,2]
[329939174,1718848258695,-150.0,0.00013967,2]
[329939175,1718848258705,-777.2630943,0.0001397,2]
[329939176,1718848258716,-155.0,0.0001397,2]
[329939177,1718848258726,-155.87757539,0.0001397,2]
[329939178,1718848258736,-3868.21225512,0.0001397,2]
[329939179,1718848258746,-269.66195644,0.0001397,2]
[329939180,1718848258756,-159.47894269,0.0001397,2]
[329939181,1718848258767,-155.75128445,0.0001397,2]
[329939182,1718848258778,-1399.42267262,0.0001397,2]
[329939183,1718848258788,-155.18830751,0.0001397,2]
[329939184,1718848258801,-2024.43364095,0.0001397,2]
[329939185,1718848258811,-500.0,0.0001397,2]
[329939186,1718848258821,-426.79144853,0.00013971,2]
[329939187,1718848258832,-500.0,0.00013971,2]
[329939188,1718848258843,-500.0,0.00013971,2]
[329939189,1718848258852,-500.0,0.00013971,2]
[329939190,1718848258863,-500.0,0.00013971,2]
[329939191,1718848258872,-500.0,0.00013971,2]
[329939192,1718848258882,-500.0,0.00013971,2]
[329939193,1718848258892,-500.0,0.00013971,2]
[329939194,1718848258902,-500.0,0.00013971,2]
[329939195,1718848258912,-500.0,0.00013971,2]
[329939196,1718848258923,-150.0,0.00013971,2]
[329939197,1718848258933,-500.0,0.00013971,2]
[329939198,1718848258943,-500.0,0.00013971,2]
[329939199,1718848258953,-500.0,0.00013971,2]
[329939200,1718848258963,-500.0,0.00013971,2]
[329939201,1718848258973,-500.0,0.00013971,2]
[329939202,1718848258983,-500.0,0.00013971,2]
[329939203,1718848258993,-500.0,0.00013971,2]
[329939204,1718848259003,-534.98009872,0.00013971,2]
[329939205,1718848259013,-500.0,0.00013971,2]
[329939206,1718848259024,-81932.49088462,0.00013971,2]
[329939207,1718848259034,-500.0,0.00013971,2]
[329939208,1718848259044,-500.0,0.00013971,2]
[329939209,1718848259056,-500.0,0.00013971,2]
[329939210,1718848259068,-500.0,0.00013971,2]
[329939211,1718848259079,-500.0,0.00013971,2]
[329939212,1718848259091,-500.0,0.00013971,2]
[329939213,1718848259101,-500.0,0.00013971,2]
[329939214,1718848259112,-151.0,0.00013971,2]
[329939215,1718848259123,-500.0,0.00013971,2]
[329939216,1718848259133,-500.0,0.00013971,2]
[329939217,1718848259143,-500.0,0.00013971,2]
[329939218,1718848259155,-206.913544,0.00013971,2]
[329939219,1718848259168,-151.0,0.00013971,2]
[329939220,1718848259178,-153.018342,0.00013971,2]
[329939221,1718848259189,-151.0,0.00013971,2]
[329939222,1718848259201,-151.0,0.00013971,2]
[329939223,1718848259212,-175.63425,0.00013971,2]
[329939224,1718848259222,-151.0,0.00013971,2]
[329939225,1718848259232,-153.727607,0.00013971,2]
[329939226,1718848259243,-153.181979,0.00013971,2]
[329939227,1718848259254,-151.0,0.00013971,2]
[329939228,1718848259267,-583.05,0.00013972,2]
[329939229,1718848259277,-500.0,0.00013972,2]
[329939230,1718848259287,-500.0,0.00013972,2]
[329939231,1718848259299,-675.68,0.00013972,2]
[329939232,1718848259309,-543.46,0.00013972,2]
[329939233,1718848259318,-786.47,0.00013972,2]
[329939234,1718848259328,-500.0,0.00013972,2]
[329939235,1718848259338,-565.88,0.00013972,2]
[329939236,1718848259347,-500.0,0.00013972,2]
[329939237,1718848259357,-500.0,0.00013972,2]
[329939238,1718848259367,-500.0,0.00013972,2]
[329939239,1718848259377,-563.19,0.00013972,2]
[329939240,1718848259387,-500.0,0.00013972,2]
[329939241,1718848259398,-500.0,0.00013972,2]
[329939242,1718848259409,-500.0,0.00013972,2]
[329939243,1718848259419,-500.0,0.00013972,2]
[329939244,1718848259430,-510.12,0.00013972,2]
[329939245,1718848259440,-607.65,0.00013972,2]
[329939246,1718848259450,-518.82,0.00013972,2]
[329939247,1718848259460,-500.0,0.00013972,2]
[329939248,1718848259475,-500.0,0.00013972,2]
[329939249,1718848259485,-500.0,0.00013972,2]
[329939250,1718848259496,-500.0,0.00013972,2]
[329939251,1718848259507,-500.0,0.00013972,2]
[329939252,1718848259517,-500.0,0.00013972,2]
[329939253,1718848259528,-500.0,0.00013972,2]
[329939254,1718848259538,-597.61,0.00013972,2]
[329939255,1718848259549,-516.86,0.00013972,2]